[Event "World Team-ch Women 2017"]
[Site "Khanty-Mansyisk"]
[Date "2017.06.24"]
[Round "7"]
[White "Melia, Salome"]
[Black "Fataliyeva, Ulviyya"]
[Result "1-0"]
[ECO "C11"]
[WhiteElo "2393"]
[BlackElo "2341"]
[Annotator "NA"]
[PlyCount "95"]
[EventDate "2017.??.??"]
[EventType "team-tourn"]
[EventCountry "RUS"]
[SourceTitle "playchess.com"]
[Source "ChessBase"]
[SourceQuality "1"]
[WhiteTeam "GEO"]
[BlackTeam "AZE"]
[WhiteTeamCountry "GEO"]
[BlackTeamCountry "AZE"]
[TimeControl "40/5400+30:1800+30"]

1. e4 {[%emt 0:00:00]} e6 {[%emt 0:00:02]} 2. d4 {[%emt 0:00:00]} d5 {[%emt 0:00:02]} 3. Nc3 {[%emt 0:00:00]} Nf6 {[%emt 0:00:02]} 4. e5 {[%emt 0:00:00]} Nfd7 {[%emt 0:00:02]} 5. f4 {[%emt 0:00:00]} c5 {[%emt 0:00:02]} 6. Nf3 {[%emt 0:00:01]} Nc6 {[%emt 0:00:02]} 7. Be3 {[%emt 0:00:06]} cxd4 {[%emt 0:00:02]} 8. Nxd4 {[%emt 0:00:08]} Bc5 {[%emt 0:00:02]} 9. Qd2 {[%emt 0:03:40]} O-O {[%emt 0:00:03]} 10. O-O-O {[%emt 0:04:20]} a6 {[%emt 0:00:01]} 11. h4 {[%emt 0:01:22]} Nxd4 {[%emt 0:00:03]} 12. Bxd4 {[%emt 0:00:05]} b5 {[%emt 0:00:02]} 13. Kb1 {[%emt 0:00:53]} b4 {[%emt 0:01:10] C11: French: Classical System: 4 e5 and 4 Bg5 dxe4} 14. Ne2 {[%emt 0:05:06]} a5 {[%emt 0:00:05]} 15. h5 {[%emt 0:01:05] LiveBook: 7 Games} Ba6 {[%emt 0:01:10] [#]} (15... Qb6 $5) 16. h6 {[%emt 0:00:25]} (16. f5 $1 $11 {[%mdl 512]}) 16... g6 {[%emt 0:00:17]} 17. Ng3 {[%emt 0:09:04]} (17. Nc1 Qc7 18. Nb3 Be7 19. Bd3 a4 20. Nc1 Rfc8 21. b3 {0-1 (30) Granda Zuniga,J (2646)-Narciso Dublan,M (2508) Sitges 2016}) 17... Qc7 $146 {[%emt 0:02:46]} ({Predecessor:} 17... Bxf1 18. Nxf1 Qb6 19. Ne3 a4 20. Ng4 b3 21. cxb3 axb3 {1-0 (33) Sanal,V (2481)-Konstantinov,A (2264) Novi Sad 2016}) 18. Bxa6 {[%emt 0:05:29]} Rxa6 {[%emt 0:00:07]} 19. Nf1 {[%emt 0:00:18]} a4 {[%emt 0:02:22]} 20. Rh3 {[%emt 0:05:45]} Rb8 {[%emt 0:01:04]} 21. Ne3 {[%emt 0:13:30]} b3 {[%emt 0:19:06]} ({Black should try} 21... Rc6 $17 22. c3 Rc8) 22. cxb3 {[%emt 0:05:26]} axb3 {[%emt 0:01:40]} 23. a3 {[%emt 0:00:09]} Bxd4 {[%emt 0:05:03]} 24. Qxd4 {[%emt 0:00:04]} Rc6 $2 {[%emt 0:00:09] [#]} (24... Rc8 $15 {keeps the upper hand.}) 25. Nxd5 $1 {[%emt 0:05:24]} exd5 {[%emt 0:15:35]} 26. e6 $1 {[%emt 0:00:02]} f6 {[%emt 0:03:12]} 27. exd7 {[%emt 0:00:55]} Rd6 $18 {[%emt 0:00:19]} 28. Rc3 {[%emt 0:02:57]} Qxd7 {[%emt 0:00:08]} 29. Qd3 {[%emt 0:00:25]} Qa4 {[%emt 0:06:28]} 30. g3 {[%emt 0:03:44]} Rd7 {[%emt 0:09:20]} 31. Qe2 {[%emt 0:10:29]} Kf7 {[%emt 0:05:31]} 32. Re1 {[%emt 0:01:05]} Qe4+ {[%emt 0:00:18]} 33. Qxe4 {[%emt 0:00:16]} dxe4 {[%emt 0:00:01]} 34. Rxe4 {[%emt 0:00:27]} Rd1+ {[%emt 0:00:21]} 35. Rc1 {[%emt 0:00:03]} Rbd8 {[%emt 0:00:21]} 36. Rec4 {[%emt 0:09:56]} Ke6 {[%emt 0:02:51]} 37. g4 {[%emt 0:03:59]} R8d3 {[%emt 0:11:16]} 38. Rc7 {[%emt 0:06:12]} R1d2 {[%emt 0:02:16]} 39. Rxh7 {[%emt 0:02:37]} Rh2 {[%emt 0:00:17]} 40. Rb7 {[%emt 0:00:00]} Rxh6 {[%emt 0:00:32]} 41. Rb6+ {[%emt 0:22:14]} Kd5 {[%emt 0:16:53]} 42. Rxf6 {[%emt 0:00:14]} Ke4 {[%emt 0:07:03]} 43. Re1+ {[%emt 0:00:44]} Kf3 {[%emt 0:01:51]} 44. f5 {[%emt 0:01:54]} Kf2 {[%emt 0:11:16]} 45. Rc1 {[%emt 0:01:23]} Rf3 {[%emt 0:03:08]} 46. g5 {[%emt 0:03:06]} Rh5 {[%emt 0:01:31]} 47. fxg6 {[%emt 0:00:09]} Rxg5 {[%emt 0:00:38]} 48. Rf1+ {[%emt 0:01:20]} 1-0

[Event "World Team-ch Women 2017"]
[Site "Khanty-Mansyisk"]
[Date "2017.06.24"]
[Round "7"]
[White "Vo, Thi Kim Phung"]
[Black "Yu, Jennifer R"]
[Result "0-1"]
[ECO "D02"]
[WhiteElo "2378"]
[BlackElo "2319"]
[Annotator "NA"]
[PlyCount "94"]
[EventDate "2017.??.??"]
[EventType "team-tourn"]
[EventCountry "RUS"]
[SourceTitle "playchess.com"]
[Source "ChessBase"]
[SourceQuality "1"]
[WhiteTeam "VIE"]
[BlackTeam "USA"]
[WhiteTeamCountry "VIE"]
[BlackTeamCountry "USA"]
[TimeControl "40/5400+30:1800+30"]

1. d4 {[%emt 0:00:00]} d5 {[%emt 0:00:08]} 2. Nf3 {[%emt 0:00:00]} Nf6 {[%emt 0:00:10]} 3. g3 {[%emt 0:00:00]} c6 {[%emt 0:01:23]} 4. Bg2 {[%emt 0:00:01]} Bf5 {[%emt 0:00:49]} 5. O-O {[%emt 0:00:38]} e6 {[%emt 0:01:18]} 6. c4 {[%emt 0:00:44]} Nbd7 {[%emt 0:05:26]} 7. Nc3 {[%emt 0:01:04]} dxc4 {[%emt 0:05:07] D11: Slav Defence: 3 Nf3 sidelines and 3...Nf6 4 e3 Bg4} 8. Nh4 {[%emt 0:01:24]} (8. a4 a5 9. Nh4 Bg4 10. h3 Bh5 11. f4 Nd5 12. Nf3 Bg6 13. Nh4 Bh5 14. Nf3 Bb4 15. Qc2 {0-1 (32) Shimanov,A (2639)-Adhiban,B (2689) Atlantic City 2016}) 8... Bg4 {[%emt 0:00:38]} 9. h3 {[%emt 0:01:16]} Bh5 $1 {[%emt 0:00:06]} 10. g4 {[%emt 0:00:51]} Nd5 {[%emt 0:03:19]} 11. e4 {[%emt 0:10:58] LiveBook: 4 Games} Nb4 {[%emt 0:13:03]} 12. Nf3 {[%emt 0:09:23]} Bg6 {[%emt 0:00:09]} 13. Be3 $146 {[%emt 0:01:01]} ({Predecessor:} 13. b3 cxb3 14. Qxb3 Qc7 15. Rb1 {1-0 (53) Lintchevski,D (2532)-Hasangatin,R (2509) Kazan 2017}) 13... Nd3 {[%emt 0:12:08]} 14. a3 {[%emt 0:11:42]} Nxb2 {[%emt 0:10:21]} 15. Qb1 {[%emt 0:00:16]} Qb6 {[%emt 0:00:22]} 16. Nd2 {[%emt 0:01:33]} h5 {[%emt 0:06:39]} 17. gxh5 {[%emt 0:07:48]} ({Better is} 17. Qc2 $14) 17... Rxh5 {[%emt 0:01:40]} 18. Qc2 $11 {[%emt 0:00:22]} c5 {[%emt 0:10:18]} 19. dxc5 {[%emt 0:16:43]} Bxc5 {[%emt 0:00:09]} 20. Rab1 {[%emt 0:02:52]} Bxe3 {[%emt 0:02:36]} 21. Rxb2 {[%emt 0:01:12]} Qc5 {[%emt 0:02:25]} 22. Rb5 {[%emt 0:07:55]} Qxa3 {[%emt 0:05:55]} 23. Nxc4 {[%emt 0:02:37]} Qa6 {[%emt 0:02:29]} 24. Rxh5 {[%emt 0:02:23]} Bxh5 {[%emt 0:00:04]} 25. Nxe3 {[%emt 0:00:36]} Rc8 {[%emt 0:00:09]} 26. Qb2 {[%emt 0:01:17]} Rc5 {[%emt 0:05:06]} 27. Ra1 {[%emt 0:04:55]} Qd3 {[%emt 0:04:52]} 28. Ncd1 {[%emt 0:01:11]} Rg5 {[%emt 0:02:38]} 29. Qxb7 {[%emt 0:05:15]} Bf3 {[%emt 0:00:04]} 30. Qb1 {[%emt 0:05:03]} Bxg2 {[%emt 0:01:51]} 31. Nxg2 {[%emt 0:00:28]} Qxh3 {[%emt 0:00:05]} 32. Nde3 {[%emt 0:00:11]} Rh5 {[%emt 0:00:11]} 33. f4 {[%emt 0:01:46]} a5 {[%emt 0:02:31]} 34. Kf2 {[%emt 0:00:31]} g5 {[%emt 0:01:20]} 35. f5 {[%emt 0:01:07]} g4 {[%emt 0:00:04]} 36. Ke2 {[%emt 0:02:20]} Qf3+ {[%emt 0:00:31]} 37. Kd3 {[%emt 0:00:07]} exf5 {[%emt 0:00:20]} 38. exf5 {[%emt 0:00:55]} Rxf5 {[%emt 0:00:23]} 39. Qe1 {[%emt 0:00:15]} Re5 {[%emt 0:01:57]} 40. Rxa5 {[%emt 0:00:00]} Qe4+ {[%emt 0:00:07]} 41. Kc3 {[%emt 0:15:13]} Rxa5 {[%emt 0:00:15]} 42. Nc4 {[%emt 0:02:33]} Qxe1+ {[%emt 0:01:03]} 43. Nxe1 {[%emt 0:00:02]} Ra1 {[%emt 0:01:17]} 44. Ng2 {[%emt 0:00:39]} Ra2 {[%emt 0:01:35]} 45. Nce3 {[%emt 0:01:33]} Rf2 {[%emt 0:01:37]} 46. Kd4 {[%emt 0:02:54]} g3 {[%emt 0:03:11]} 47. Nh4 {[%emt 0:00:24]} Rf4+ {[%emt 0:00:09]} 0-1

[Event "World Team-ch Women 2017"]
[Site "Khanty-Mansyisk"]
[Date "2017.06.24"]
[Round "7"]
[White "Foisor, Sabina-Francesca"]
[Black "Hoang, Thi Bao Tram"]
[Result "1/2-1/2"]
[ECO "D70"]
[WhiteElo "2331"]
[BlackElo "2380"]
[Annotator "NA"]
[PlyCount "95"]
[EventDate "2017.??.??"]
[EventType "team-tourn"]
[EventCountry "RUS"]
[SourceTitle "playchess.com"]
[Source "ChessBase"]
[SourceQuality "1"]
[WhiteTeam "USA"]
[BlackTeam "VIE"]
[WhiteTeamCountry "USA"]
[BlackTeamCountry "VIE"]
[TimeControl "40/5400+30:1800+30"]

1. d4 {[%emt 0:00:00]} d5 {[%emt 0:00:18]} 2. c4 {[%emt 0:00:00]} c6 {[%emt 0:00:20]} 3. Nf3 {[%emt 0:00:00]} Nf6 {[%emt 0:00:28]} 4. Nbd2 {[%emt 0:00:00]} g6 {[%emt 0:03:12] D11: Slav Defence: 3 Nf3 sidelines and 3...Nf6 4 e3 Bg4} (4... Bf5 5. Nh4 Be6 6. e3 g6 7. b3 Bg7 8. Bb2 O-O 9. Rc1 Ne4 10. Bd3 Nxd2 11. Qxd2 Nd7 12. cxd5 cxd5 {½-½ (87) Mamedyarov,S (2756)-Gelfand,B (2747) Jurmala 2015}) 5. b3 {[%emt 0:00:46]} Bg7 {[%emt 0:00:25]} 6. Bb2 {[%emt 0:00:04]} O-O {[%emt 0:01:11]} 7. e3 {[%emt 0:00:13]} Ne4 {[%emt 0:03:54]} 8. Bd3 {[%emt 0:16:28]} Bf5 {[%emt 0:01:20]} 9. Qe2 $146 {[%emt 0:03:51]} ({Predecessor:} 9. Bxe4 dxe4 10. Nh4 c5 11. Nxf5 gxf5 12. Qh5 cxd4 13. O-O-O e6 14. g4 f4 15. Nxe4 Nc6 16. exd4 Qa5 17. d5 {1-0 (17) Mamedyarov,S (2542)-Guliev,S (2481) Kocaeli 2002}) 9... Nxd2 {[%emt 0:05:03]} 10. Nxd2 {[%emt 0:00:54]} Bxd3 {[%emt 0:00:18]} 11. Qxd3 {[%emt 0:00:03]} c5 {[%emt 0:01:21]} 12. O-O {[%emt 0:10:19]} cxd4 {[%emt 0:07:59]} 13. exd4 {[%emt 0:05:33]} Nc6 {[%emt 0:01:29]} 14. c5 {[%emt 0:06:11]} Rc8 {[%emt 0:04:30]} 15. Nf3 {[%emt 0:05:52]} Re8 {[%emt 0:05:17]} 16. Rad1 {[%emt 0:02:11]} b6 {[%emt 0:00:59]} 17. Ba3 {[%emt 0:04:58]} bxc5 {[%emt 0:02:31]} 18. Bxc5 {[%emt 0:03:22]} Qd7 {[%emt 0:01:15]} 19. b4 {[%emt 0:05:41]} e6 {[%emt 0:05:06]} 20. a4 $11 {[%emt 0:02:28]} Bf8 {[%emt 0:07:54]} 21. b5 {[%emt 0:01:31]} Na5 {[%emt 0:00:42]} 22. Ne5 {[%emt 0:00:21]} Qc7 {[%emt 0:02:05]} 23. Rc1 {[%emt 0:05:40]} Bd6 {[%emt 0:05:54]} 24. Ng4 {[%emt 0:04:32]} Red8 {[%emt 0:00:45]} 25. Rc3 {[%emt 0:14:56]} f5 {[%emt 0:03:26]} 26. Ne5 {[%emt 0:03:20]} Bxe5 {[%emt 0:00:19]} 27. dxe5 {[%emt 0:00:03]} Nc4 {[%emt 0:00:35]} 28. Bd4 {[%emt 0:01:32]} Qa5 {[%emt 0:00:30]} 29. h4 {[%emt 0:02:00]} Rd7 {[%emt 0:02:49]} 30. h5 {[%emt 0:00:13]} Qxa4 {[%emt 0:06:47]} 31. hxg6 {[%emt 0:00:10]} hxg6 {[%emt 0:00:06]} 32. Qg3 {[%emt 0:01:17]} Rg7 {[%emt 0:01:29]} 33. Qg5 {[%emt 0:00:16]} Qxb5 {[%emt 0:00:51]} 34. Ra1 {[%emt 0:00:54]} a5 {[%emt 0:02:47]} 35. Rh3 {[%emt 0:00:32]} Qb4 {[%emt 0:02:59]} 36. Rh6 {[%emt 0:00:44]} Qe7 {[%emt 0:01:14]} 37. Qf6 {[%emt 0:00:17]} Rf8 {[%emt 0:01:38]} 38. Qxe7 {[%emt 0:00:18]} Rxe7 {[%emt 0:00:09]} 39. Bc5 {[%emt 0:01:15]} Rg7 {[%emt 0:00:50]} 40. Bxf8 {[%emt 0:00:00]} Kxf8 {[%emt 0:00:06]} 41. f4 {[%emt 0:07:13]} Rb7 {[%emt 0:04:19]} 42. Rxg6 {[%emt 0:02:46]} Kf7 {[%emt 0:00:53]} 43. Rf6+ {[%emt 0:06:24]} Ke7 {[%emt 0:00:07]} 44. g4 {[%emt 0:04:08]} fxg4 {[%emt 0:00:11]} 45. Kg2 {[%emt 0:01:57]} Rb3 {[%emt 0:04:52]} 46. Rh1 {[%emt 0:01:23]} Rh3 {[%emt 0:01:23]} 47. Rxh3 {[%emt 0:04:20]} gxh3+ {[%emt 0:00:08]} 48. Kf3 {[%emt 0:00:55]} 1/2-1/2

[Event "World Team-ch Women 2017"]
[Site "Khanty-Mansyisk"]
[Date "2017.06.24"]
[Round "7"]
[White "Gorti, Akshita"]
[Black "Nguyen, Thi Mai Hung"]
[Result "0-1"]
[ECO "D12"]
[WhiteElo "2240"]
[BlackElo "2301"]
[Annotator "NA"]
[PlyCount "90"]
[EventDate "2017.??.??"]
[EventType "team-tourn"]
[EventCountry "RUS"]
[SourceTitle "playchess.com"]
[Source "ChessBase"]
[SourceQuality "1"]
[WhiteTeam "USA"]
[BlackTeam "VIE"]
[WhiteTeamCountry "USA"]
[BlackTeamCountry "VIE"]
[TimeControl "40/5400+30:1800+30"]

1. d4 {[%emt 0:00:00]} d5 {[%emt 0:00:06]} 2. c4 {[%emt 0:00:00]} c6 {[%emt 0:00:13]} 3. Nf3 {[%emt 0:00:00]} Nf6 {[%emt 0:00:12]} 4. e3 {[%emt 0:00:00]} Bf5 {[%emt 0:00:15]} 5. Nc3 {[%emt 0:00:13]} e6 {[%emt 0:00:06]} 6. Nh4 {[%emt 0:00:16]} Be4 {[%emt 0:00:19]} 7. f3 {[%emt 0:00:26]} Bg6 {[%emt 0:00:07]} 8. Qb3 {[%emt 0:00:19]} Qc7 {[%emt 0:00:10]} 9. Bd2 {[%emt 0:00:46] D12: Slav Defence: 3 Nf3 Nf6 4 e3 Bf5} Nbd7 {[%emt 0:00:13]} (9... a6 10. Rc1 dxc4 11. Bxc4 Nbd7 12. a4 Be7 13. g3 Bh5 14. O-O O-O 15. Ng2 Rad8 16. Nf4 Kh8 {½-½ (34) So,W (2822)-Caruana,F (2817) chess.com INT 2017}) 10. cxd5 {[%emt 0:03:40]} Nxd5 {[%emt 0:00:22]} 11. Nxd5 {[%emt 0:11:54]} exd5 {[%emt 0:01:45]} 12. e4 {[%emt 0:02:50]} dxe4 {[%emt 0:05:48]} 13. Nxg6 {[%emt 0:00:10]} hxg6 {[%emt 0:00:15]} 14. fxe4 {[%emt 0:00:15]} Nf6 {[%emt 0:06:00]} (14... O-O-O $5 {[%cal Rd7f6]}) 15. e5 $146 {[%emt 0:06:39]} ({Predecessor:} 15. O-O-O $1 $11 O-O-O 16. Bg5 Rh5 {½-½ (36) Jun,Z (2244)-Kamsky,G (2690) Khanty-Mansiysk 2005}) 15... Nd5 {[%emt 0:00:38]} 16. Bd3 {[%emt 0:03:24]} a5 {[%emt 0:10:13]} 17. a3 {[%emt 0:06:02]} Rh4 {[%emt 0:10:37]} 18. Bc3 $1 {[%emt 0:11:40]} Be7 {[%emt 0:12:04]} 19. g3 $1 {[%emt 0:02:16]} Rh6 {[%emt 0:01:48]} (19... Rh8 $14) 20. Bd2 {[%emt 0:01:22]} Rh8 {[%emt 0:05:31]} 21. O-O-O {[%emt 0:02:01]} Qb6 $16 {[%emt 0:07:11]} 22. Qxb6 {[%emt 0:11:56]} Nxb6 {[%emt 0:00:07]} 23. Rdf1 {[%emt 0:01:19]} Nd5 {[%emt 0:05:27]} 24. e6 {[%emt 0:03:12]} Bf6 {[%emt 0:06:06]} 25. exf7+ {[%emt 0:03:03]} Kxf7 {[%emt 0:00:12]} 26. g4 {[%emt 0:00:12]} Rh3 {[%emt 0:01:43]} 27. Kc2 {[%emt 0:13:20]} g5 {[%emt 0:07:40]} 28. Bxg5 {[%emt 0:03:46]} Kg8 {[%emt 0:00:28]} 29. Bc1 {[%emt 0:03:50]} Bxd4 {[%emt 0:01:04]} 30. g5 {[%emt 0:01:36]} Re8 {[%emt 0:04:48]} 31. g6 {[%emt 0:01:41]} Bf6 {[%emt 0:02:02]} 32. Rf2 {[%emt 0:02:07]} Re5 {[%emt 0:05:34]} 33. Rf5 {[%emt 0:04:42]} Kf8 {[%emt 0:03:41]} 34. Rxe5 {[%emt 0:00:57]} Bxe5 {[%emt 0:00:02]} 35. Bd2 {[%emt 0:01:00]} b6 {[%emt 0:02:10]} 36. b4 {[%emt 0:00:23]} axb4 {[%emt 0:00:11]} 37. axb4 {[%emt 0:00:08]} Ke7 {[%emt 0:01:03]} 38. Be4 {[%emt 0:00:45]} Kd6 {[%emt 0:00:46]} 39. Rd1 {[%emt 0:00:44]} Rxh2 {[%emt 0:00:13]} 40. Kb3 {[%emt 0:00:00]} b5 {[%emt 0:01:00]} 41. Bd3 {[%emt 0:10:39]} Ke6 {[%emt 0:02:23]} 42. Be4 {[%emt 0:02:47]} Rh4 {[%emt 0:04:30]} 43. Re1 {[%emt 0:00:52]} Kd6 {[%emt 0:00:40]} 44. Kc2 {[%emt 0:03:02]} Rh2 {[%emt 0:01:41]} 45. Kd3 {[%emt 0:00:53]} Rxd2+ {[%emt 0:00:25] Kd4} 0-1

[Event "World Team-ch Women 2017"]
[Site "Khanty-Mansyisk"]
[Date "2017.06.25"]
[Round "8"]
[White "Karavade, Eesha"]
[Black "Vo, Thi Kim Phung"]
[Result "1-0"]
[ECO "E90"]
[WhiteElo "2388"]
[BlackElo "2378"]
[Annotator "NA"]
[PlyCount "161"]
[EventDate "2017.??.??"]
[EventType "team-tourn"]
[EventCountry "RUS"]
[SourceTitle "playchess.com"]
[Source "ChessBase"]
[SourceQuality "1"]
[WhiteTeam "IND"]
[BlackTeam "VIE"]
[WhiteTeamCountry "IND"]
[BlackTeamCountry "VIE"]
[TimeControl "40/5400+30:1800+30"]

1. d4 {[%emt 0:00:00]} Nf6 {[%emt 0:00:08]} 2. c4 {[%emt 0:00:00]} g6 {[%emt 0:00:15]} 3. Nc3 {[%emt 0:00:41]} Bg7 {[%emt 0:00:22]} 4. e4 {[%emt 0:00:37]} d6 {[%emt 0:00:05]} 5. Nf3 {[%emt 0:00:23]} O-O {[%emt 0:00:08]} 6. h3 {[%emt 0:01:11]} Nbd7 {[%emt 0:00:29]} 7. Be3 {[%emt 0:01:29]} e5 {[%emt 0:00:11]} 8. d5 {[%emt 0:00:16]} a5 {[%emt 0:00:26]} 9. g4 {[%emt 0:02:13]} Nc5 {[%emt 0:01:01]} 10. Nd2 {[%emt 0:00:07]} Ne8 {[%emt 0:04:34]} 11. h4 {[%emt 0:04:42]} f5 {[%emt 0:01:09]} 12. g5 {[%emt 0:07:53]} f4 {[%emt 0:10:28]} 13. Bxc5 {[%emt 0:00:08]} dxc5 {[%emt 0:00:02]} 14. Qf3 {[%emt 0:05:24]} Nd6 {[%emt 0:09:42]} 15. Nb5 {[%emt 0:13:06]} Rf7 {[%emt 0:03:37]} 16. Nxd6 {[%emt 0:04:42]} cxd6 {[%emt 0:00:38]} 17. Bh3 {[%emt 0:00:18]} Bf8 {[%emt 0:02:24]} 18. Nb1 {[%emt 0:05:35]} Qb6 {[%emt 0:06:06]} 19. Qb3 {[%emt 0:02:16]} Qb4+ {[%emt 0:01:32]} 20. Nc3 {[%emt 0:03:27]} Bxh3 {[%emt 0:04:35]} 21. Rxh3 {[%emt 0:00:06]} Qxb3 {[%emt 0:06:15]} 22. axb3 {[%emt 0:00:10]} b6 {[%emt 0:00:30]} 23. O-O-O {[%emt 0:02:46]} Raa7 {[%emt 0:00:28]} 24. Rg1 {[%emt 0:00:39]} Be7 {[%emt 0:00:21]} 25. Kb1 {[%emt 0:01:18]} Bd8 {[%emt 0:02:59]} 26. Ka2 {[%emt 0:02:29]} Kf8 {[%emt 0:00:36]} 27. Ka3 {[%emt 0:00:10]} Rg7 {[%emt 0:07:14]} 28. Ka4 {[%emt 0:01:10]} Ke8 {[%emt 0:04:15]} 29. Nb5 {[%emt 0:05:35]} Rad7 {[%emt 0:00:15]} 30. h5 {[%emt 0:01:01]} Kf8 {[%emt 0:03:43]} 31. Nc3 {[%emt 0:03:44]} Ra7 {[%emt 0:03:51]} 32. Nb1 {[%emt 0:06:19]} Kg8 {[%emt 0:06:49]} 33. Nd2 {[%emt 0:01:42]} Be7 {[%emt 0:01:10]} 34. Nf3 {[%emt 0:00:59]} Bf8 {[%emt 0:00:37]} 35. hxg6 {[%emt 0:00:55]} hxg6 {[%emt 0:00:23]} 36. Rgh1 {[%emt 0:00:21]} Kf7 {[%emt 0:04:55]} 37. Rh7 {[%emt 0:03:42]} Ra8 {[%emt 0:02:46]} 38. Rxg7+ {[%emt 0:00:56]} Bxg7 {[%emt 0:00:13]} 39. Kb5 {[%emt 0:01:09]} Kg8 {[%emt 0:01:21]} 40. Nd2 {[%emt 0:00:00]} Bf8 {[%emt 0:00:47]} 41. Kxb6 {[%emt 0:03:34]} Be7 {[%emt 0:01:45]} 42. Kc7 {[%emt 0:00:28]} Bf8 {[%emt 0:00:59]} 43. Kb7 {[%emt 0:07:37]} Re8 {[%emt 0:02:34]} 44. Nb1 {[%emt 0:06:18]} Be7 {[%emt 0:03:04]} 45. Kc7 {[%emt 0:00:12]} Bxg5 {[%emt 0:01:06]} 46. Kxd6 {[%emt 0:01:23]} Rb8 {[%emt 0:01:52]} 47. Nd2 {[%emt 0:00:55]} f3 {[%emt 0:03:26]} 48. Nxf3 {[%emt 0:00:13]} Bf4 {[%emt 0:00:02]} 49. Ke6 {[%emt 0:04:55]} Rxb3 {[%emt 0:02:30]} 50. Nxe5 {[%emt 0:00:13]} Rxb2 {[%emt 0:03:40]} 51. Nxg6 {[%emt 0:03:23]} Rb6+ {[%emt 0:00:06]} 52. Kf5 {[%emt 0:00:05]} Bc7 {[%emt 0:01:37]} 53. e5 {[%emt 0:00:09]} a4 {[%emt 0:02:21]} 54. d6 {[%emt 0:02:01]} Bxd6 {[%emt 0:01:13]} 55. exd6 {[%emt 0:00:07]} Rxd6 {[%emt 0:00:15]} 56. Ra1 {[%emt 0:00:17]} Ra6 {[%emt 0:01:29]} 57. Ra3 {[%emt 0:00:06]} Kg7 {[%emt 0:00:53]} 58. Nf4 {[%emt 0:00:17]} Kf7 {[%emt 0:00:49]} 59. Ke5 {[%emt 0:00:06]} Ra8 {[%emt 0:00:36]} 60. Nd3 {[%emt 0:00:21]} Ke7 {[%emt 0:05:05]} 61. Nxc5 {[%emt 0:00:48]} Rc8 {[%emt 0:00:08]} 62. Kd4 {[%emt 0:00:45]} Rd8+ {[%emt 0:00:10]} 63. Kc3 {[%emt 0:00:07]} Rf8 {[%emt 0:00:09]} 64. Nd3 {[%emt 0:00:07]} Ra8 {[%emt 0:00:16]} 65. Kb4 {[%emt 0:00:06]} Rb8+ {[%emt 0:00:15]} 66. Kxa4 {[%emt 0:00:08]} Kd6 {[%emt 0:00:10]} 67. Rb3 {[%emt 0:00:05]} Rf8 {[%emt 0:00:46]} 68. Kb4 {[%emt 0:00:53]} Rf5 {[%emt 0:01:43]} 69. c5+ {[%emt 0:00:19]} Kd5 {[%emt 0:00:34]} 70. Kc3 {[%emt 0:00:39]} Kc6 {[%emt 0:01:05]} 71. Rb6+ {[%emt 0:00:09]} Kc7 {[%emt 0:00:07]} 72. Kd4 {[%emt 0:00:03]} Rf3 {[%emt 0:00:18]} 73. Ke4 {[%emt 0:00:12]} Rh3 {[%emt 0:00:24]} 74. f4 {[%emt 0:00:09]} Rh1 {[%emt 0:00:43]} 75. f5 {[%emt 0:00:12]} Rh4+ {[%emt 0:00:48]} 76. Nf4 {[%emt 0:00:14]} Rh7 {[%emt 0:05:29]} 77. Nd5+ {[%emt 0:00:45]} Kc8 {[%emt 0:00:12]} 78. f6 {[%emt 0:00:18]} Rh4+ {[%emt 0:00:39]} 79. Ke5 {[%emt 0:00:06]} Kd7 {[%emt 0:02:46]} 80. Rb7+ {[%emt 0:00:34]} Kc8 {[%emt 0:00:12]} 81. c6 {[%emt 0:00:19]} 1-0